Cogmind - Beta 9.1 @@@ ROGUE MODE // 2019.11.02 @ 21:00:58 Player: Nikolayag Result: Destroyed by as-36057 with Assembled Rifle Performance ------------- Evolutions (0) 0 Regions Visited (2) 400 Robots Destroyed (30) 150 Value Destroyed (499) 499 Prototype IDs (0) 0 Alien Tech Used (0) 0 Bonus (0) 0 TOTAL SCORE: 1049 Bonus ------- None Cogmind --------- Core Integrity 0/250 Matter 280/300 Energy 68/100 System Corruption 0% Temperature Cool (1) Location -10/Mines Parts ------- Power (1) Propulsion (2) Light Treads Compact Wheel Utility (2) Large Storage Unit Large Storage Unit Weapon (2) Inventory (16) Light Ion Engine Light Treads Light Treads Medium Storage Unit Experimental Sensor Array Small Laser Light Assault Rifle Light Assault Rifle Light Assault Rifle Light Cannon Peak State ------------ Power Ion Engine Propulsion Light Treads Wheel Utility Large Storage Unit Large Storage Unit Weapon Small Laser Particle Gun Inventory Light Ion Engine Light Ion Engine Light Treads Light Treads Light Treads Light Treads Compact Wheel Compact Wheel Medium Storage Unit Experimental Sensor Array Small Laser Assault Rifle Light Assault Rifle Light Assault Rifle Light Assault Rifle Light Cannon [Rating: 10] Favorites ----------- Power Ion Engine Engine Ion Engine Propulsion Light Treads Treads Light Treads Wheel Wheel Utility Large Storage Unit Storage Large Storage Unit Weapon Particle Gun Energy Gun Particle Gun Ballistic Gun Light Assault Rifle Build | -11 -10 -10 ------- Run | Scr Mat Min Slots Evolved . | . . . Power . | . . . Propulsion . | . . . Utility . | . . . Weapon . | . . . Parts Attached 22 | 6 10 6 Power 3 | 1 1 1 Engine 3 | 1 1 1 Core . | . . . Reactor . | . . . Propulsion 7 | 2 1 4 Treads 3 | 1 . 2 Leg . | . . . Wheel 4 | 1 1 2 Hover . | . . . Flight . | . . . Utility 5 | 1 4 . Device . | . . . Storage 5 | 1 4 . Processor . | . . . Hackware . | . . . Protection . | . . . Artifact . | . . . Weapon 7 | 2 4 1 Energy Gun 5 | 1 4 . Energy Cannon . | . . . Ballistic Gun 2 | 1 . 1 Ballistic Cannon . | . . . Launcher . | . . . Special Weapon . | . . . Impact Weapon . | . . . Slashing Weapon . | . . . Piercing Weapon . | . . . Special Melee Weapon . | . . . Unidentified Prototypes . | . . . Parts Lost 13 | . 4 9 Power 3 | . 1 2 Propulsion 5 | . 1 4 Utility . | . . . Weapon 5 | . 2 3 Highest Loss Streak 7 | . 2 7 Average Slot Usage (%) 96 | . 96 97 Engine 13 | . 13 13 Treads 13 | . 14 13 Wheel 13 | . 13 14 Storage 26 | . 24 28 Energy Gun 22 | . 21 24 Ballistic Gun 5 | . 6 2 Naked Turns . | . . . Heaviest Build 41 | 12 41 41 Greatest Support 20 | 20 20 20 Greatest Overweight (x) 4 | . 4 4 Average Overweight (x) 2 | . 1 3 Largest Inventory Capacity 16 | 6 16 16 Average Capacity 11 | 4 9 16 Most Carried 16 | 5 11 16 Average Carried 9 | 2 7 14 Final Capacity 16 | 6 16 16 Final Carried 11 | 5 11 10 Class Distribution -------------------- 100% | Mutant Dominant Class ---------------- Mutant | -10/Materials Mutant | -10/Mines Resources | -11 -10 -10 ----------- Run | Scr Mat Min Matter Collected 403 | 181 173 49 Remotely . | . . . Salvage Created 855 | 55 559 241 Parts 67 | 2 42 23 Haulers Intercepted 1 | . 1 . Recyclers Shooed 3 | . 3 . Parts Field Recycled . | . . . Retrieved Matter . | . . . Parts Self-Destructed . | . . . Prevented . | . . . Kills | -11 -10 -10 ------- Run | Scr Mat Min Combat Hostiles Destroyed 21 | . 13 8 Guns 21 | . 13 8 Classes Destroyed 7 | 1 6 . Worker 3 | . 2 1 Tunneler 2 | . 1 1 Hauler 1 | . 1 . Recycler 2 | 1 1 . Watcher 1 | . 1 . Swarmer 12 | . 6 6 Grunt 9 | . 7 2 Best Kill Streak 4 | 1 4 2 Combat Bots Only 4 | . 4 2 Max Kills in Single Turn 2 | 1 2 2 Gunslinging 1 | . 1 1 Exploded . | . . . Melee . | . . . Uniques/NPCs Destroyed . | . . . Combat | -11 -10 -10 -------- Run | Scr Mat Min Damage Taken 1259 | . 420 839 Core 255 | . 44 211 Absorbed by Shields . | . . . Core Remaining (%) 100 | 100 . . Volleys Fired 69 | 2 46 21 Largest 2 | 2 2 2 Hottest 115 | 70 115 105 Shots Fired 136 | 4 91 41 Gun 136 | 4 91 41 Cannon . | . . . Launcher . | . . . Special . | . . . Kinetic 34 | 2 27 5 Thermal 102 | 2 64 36 Explosive . | . . . Electromagnetic . | . . . Robot Hit Streak 16 | 3 16 8 Robot Miss Streak 4 | . 3 4 Penetration Max . | . . . Secondary Targets 2 | . 1 1 Max Gunslinging Chain 1 | . 1 1 Shots Hit Robots 90 | 3 66 21 Core Hits 48 | 2 32 14 Critical Hits . | . . . Critical Kills . | . . . Critical Parts Destroyed . | . . . Melee Attacks . | . . . Impact . | . . . Slashing . | . . . Piercing . | . . . Sneak Attacks . | . . . Combat Hostiles . | . . . Follow-up Attacks . | . . . Damage Inflicted 979 | 33 683 263 Guns 979 | 33 683 263 Cannons . | . . . Explosions . | . . . Melee . | . . . Ramming . | . . . Kinetic 157 | 9 126 22 Thermal 822 | 24 557 241 Explosive . | . . . Electromagnetic . | . . . Impact . | . . . Slashing . | . . . Piercing . | . . . Highest Corruption . | . . . Average Corruption . | . . . Corruption Purged . | . . . Overload Shots . | . . . Overflow Damage . | . . . Projectiles . | . . . Explosions . | . . . Melee . | . . . Knockbacks . | . . . Impact . | . . . Kinetic . | . . . Secondary . | . . . Self-Inflicted Damage . | . . . Shots . | . . . Rammed 1 | . 1 . Targets Rammed 1 | . 1 . Kicked . | . . . Crushed . | . . . Highest Temperature 382 | 40 382 187 Average Temperature 93 | 23 113 62 Received Heat Transfer 339 | . 138 201 Effects 3 | . 3 . Shutdowns 1 | . 1 . Interference 2 | . 2 . Siege Activations . | . . . Robots Corrupted . | . . . Combat Hostiles . | . . . Parts Fried . | . . . Impact Corruptions . | . . . Robots Melted . | . . . Combat Hostiles . | . . . Parts Melted 2 | . 1 1 Heat Transferred 2178 | 74 1521 583 Parts Sabotaged . | . . . Parts Stolen . | . . . Parts Stripped . | . . . Power Chain Reactions . | . . . Missiles Intercepted . | . . . Alert | -11 -10 -10 ------- Run | Scr Mat Min Peak Influence 208 | 5 208 197 Average Influence 82 | 1 82 93 Maximum Alert Level 1 | . 1 . Low Security (%) 97 | . . . Level 1 2 | . . . Level 2 . | . . . Level 3 . | . . . Level 4 . | . . . Level 5 . | . . . High Security . | . . . Max Security . | . . . Squads Dispatched 1 | . 1 . Investigation . | . . . Extermination . | . . . Reinforcement 1 | . 1 . Assault . | . . . Garrison . | . . . Intercept . | . . . Construction Impeded . | . . . Haulers Reinforced . | . . . Stealth | -11 -10 -10 --------- Run | Scr Mat Min Distress Signals 1 | . 1 . Communications Jammed . | . . . Distress Signals . | . . . Times Spotted 49 | . 17 32 Peak Tracking Total 17 | . 4 17 Tactical Retreats 3 | . . 3 Traps | -11 -10 -10 ------- Run | Scr Mat Min Traps Triggered . | . . . Indirectly . | . . . Trap Hack Attempts . | . . . Triggered . | . . . Disarmed . | . . . Reprogrammed . | . . . Reused . | . . . Traps Extracted . | . . . Installed . | . . . Triggered . | . . . Machines | -11 -10 -10 ---------- Run | Scr Mat Min Machines Disabled . | . . . Max in Single Turn . | . . . Machines Sabotaged . | . . . Garrisons Compromised . | . . . Overloaded Fab Kills . | . . . Fab Network Shutdowns . | . . . Hacking | -11 -10 -10 --------- Run | Scr Mat Min Machines Accessed 3 | . 3 . Terminals 3 | . 3 . Fabricators . | . . . Repair Stations . | . . . Recycling Units . | . . . Scanalyzers . | . . . Garrison Access . | . . . Total Hacks 10 | . 10 . Successful 7 | . 7 . Failed 3 | . 3 . Catastrophic . | . . . Database Lockouts . | . . . Manual 7 | . 7 . Terminals 10 | . 10 . Fabricators . | . . . Repair Stations . | . . . Recycling Units . | . . . Scanalyzers . | . . . Garrison Access . | . . . Terminal Hacks 3 | . 3 . Terminal Index 1 | . 1 . Zone Layout 2 | . 2 . Fabricator Hacks . | . . . Repair Station Hacks . | . . . Recycling Unit Hacks . | . . . Scanalyzer . | . . . Garrison Access Hacks . | . . . Unauthorized Hacks 9 | . 9 . Terminals 3 | . 3 . Track 1 | . 1 . Botnet 2 | . 2 . Fabricators . | . . . Repair Stations . | . . . Recycling Units . | . . . Scanalyzers . | . . . Garrison Access . | . . . Data Cores Recovered . | . . . Used . | . . . Hacking Detections 2 | . 2 . Full Trace Events 1 | . 1 . Feedback Events . | . . . Feedback Blocked . | . . . Robot Schematics Acquired . | . . . Robots Built . | . . . Matter . | . . . Time . | . . . Total Robot Build Rating . | . . . Part Schematics Acquired . | . . . Parts Built . | . . . Matter . | . . . Time . | . . . Total Part Build Rating . | . . . Parts Repaired . | . . . Time . | . . . Parts Recycled . | . . . Recycled Matter . | . . . Retrieved Matter . | . . . Retrieved Components . | . . . Parts Scanalyzed . | . . . Part Schematics Acquired . | . . . Parts Damaged . | . . . Bothacking | -11 -10 -10 ------------ Run | Scr Mat Min Used RIF Installer . | . . . Robots Hacked . | . . . Non-combat . | . . . Combat . | . . . Robot Hacks Applied . | . . . Relay Couplers Released . | . . . Robots Rewired . | . . . Allies Hacked . | . . . Hacks Repelled . | . . . Allies | -11 -10 -10 -------- Run | Scr Mat Min Total Allies 2 | . . 2 Largest Group 2 | . . 2 Highest-Rated Group 38 | . . 38 Highest-Rated Ally 31 | . . 31 Total Orders . | . . . Ally Attacks 4 | . . 4 Total Damage . | . . . Kills . | . . . Allies Corrupted . | . . . Allies Melted . | . . . Intel | -11 -10 -10 ------- Run | Scr Mat Min Robot Analysis Total . | . . . Derelict Logs Recovered 1 | . . 1 Drone Launches . | . . . Drone Recoveries . | . . . Exploration | -11 -10 -10 ------------- Run | Scr Mat Min Turns Passed 1410 | 66 879 465 Spaces Moved 996 | 41 638 317 Core 1 | 1 . . Treads 10 | 8 1 1 Legs . | . . . Wheels 985 | 32 637 316 Hover . | . . . Flight . | . . . Fastest Speed 50 | 50 100 110 Average Speed 109 | 110 104 118 Slowest Speed 180 | 160 160 180 Overloaded Moves . | . . . Propulsion Burnouts . | . . . Robots Hopped . | . . . Cave-ins Triggered . | . . . Exploration Rate (%) 54 | 4 97 62 Regions Visited 2 Branch Regions 1 Pre-discovered Areas . | . . . Known Exits Taken . | . . . Unknown Exits Taken 2 | 1 1 . Scrap Searched 1 | . . 1 Spaces Dug . | . . . Terrain Destroyed . | . . . Melee . | . . . Projectile . | . . . AOE . | . . . Actions | -11 -10 -10 --------- Run | Scr Mat Min Total 1185 | 55 762 368 Wait 77 | 2 58 17 Move 994 | 40 637 317 Hop . | . . . Pick Up 19 | 5 8 6 Fast Attach 7 | 6 1 . Attach 10 | . 4 6 Detach . | . . . Swap 5 | . 5 . Drop 3 | . 2 1 Fire 69 | 2 46 21 Melee . | . . . Ram . | . . . Kick . | . . . Crush 1 | . 1 . Escape Stasis . | . . . Rewire . | . . . Trap . | . . . Miscellaneous . | . . . Route ------- -11/Scrapyard -10/Materials (discovered 4 exits: [*Mat x3] / [*Min]) -10/Mines (discovered 1 exit: [*Mat]) History --------- Turn | Location | Event 13 | -11/Scrapyard | Discovered new exit (range 14) 67 | -11/Scrapyard | Entered Materials 136 | -10/Materials | Discovered new exit (range 15) 186 | -10/Materials | Discovered new exit (range 14) 312 | -10/Materials | Build established: Mutant 441 | -10/Materials | Discovered new exit (range 15) 759 | -10/Materials | Discovered new exit (range 16) 946 | -10/Materials | Entered Mines 1258 | -10/Mines | Discovered new exit (range 16) 1258 | -10/Mines | Found a damaged Exp. Sensor Array with a note attached 1262 | -10/Mines | Found Prototype Device 1375 | -10/Mines | Assembled infested the area 1380 | -10/Mines | Assisted by a Guerilla fighting off Assembled 1398 | -10/Mines | Core integrity fell below 50% 1408 | -10/Mines | Core integrity fell below 20% 1411 | -10/Mines | Destroyed by as-36057 with Assembled Rifle Last Messages --------------- 01385_ as-54345 destroyed. 01387_ TO-W6N(g) destroyed. 01390_ HV Slug penetrates Wall. 01392_ HV Slug penetrates as-00819. 01392_ as-00819 suffers critical hit. 01392_ as-00819 destroyed. 01392_ Particle Gun destroyed. 01393_ OD-2X8(h) destroyed. 01396_ Lgt. Treads destroyed. 01399_ Wheel destroyed. 01399_ Lgt. Ion Engine destroyed. 01405_ Assault Rifle destroyed. 01407_ Lgt. Treads destroyed. 01408_ Com. Wheel destroyed. 01408_ as-73866 destroyed. 01408_ as-41868 destroyed. 01410_ as-08577 destroyed. 01410_ as-37384 destroyed. 01410_ as-06510 destroyed. 01411_ as-00450 destroyed. Map ----- +----------------------------------------------------+ | ???????????????????????????????????????????????? | | ???????????????????????????????????????????????? | | ???????????????????????????????????????????????? | | ???????????????????????????????????????????????? | | ???????????????????????????????????????????????? | | ???????????????????????????????????????????????? | | ???????????????????????????????????????????????? | | ???????????????????????????????????????????????? | | ???????????????????????????????????????????????? | | ???????????????????????????????????????????????? | | ???????????????????????????????????????????????? | | ???????????????????????????????????????????????? | | ???????????????????###?????????????????????????? | | ??????????????????? #????????????????????????? | | ??????????? ????#a #????????????????????????? | | ??????????? ????# ????????????????????????? | | ?????????? ???#a$#????????????????????????? | | ?????????? ??# #????????????????????????? | | ?????????# ### ###??????????????????????? | | ????????## # ##?????????????????????? | | ???????## aa #?????????????????????? | | ????#### a a #??#??????????????????? | | ???## % a ##;#?????"????????????? | | ??## ## """ #?????????? | | ?## ???????????? | | ?# ! @ #??????????????????? | | ?# d% %a a ##### #??????????????????? | | ?# d aa ##?????????????????????????? | | ??# #????# ????????????????????? | | ????# ##????# ???????????????????? | | ????# ## #####?????# ??????????????????? | | ????# ### ####????????## ??????????????????? | | ????# #?####?????????### ??????????????????? | | ????# #?????????????## ?????????????????? | | ????# ###??????????## ?????????????????? | | ????# #??????????# #????????????????? | | ????#### #?????????# #???????????????? | | ???????# #?????????# ####???????????? | | ???????# #???????????? ##??????????? | | ???????# ########### ## #??????????? | | ???????# #??# #??????????? | | ???????###### ####### #???##### ###??????????? | | ????????????# #????????????????# #???????####?? | | ????????????#=#????????????????# #??????? #?? | | ????????????#%#????????????????# #??????? #?? | | ????#########*#????????????????# #???????# #?? | | ????#= #????????????????# #???????# #?? | | ????#%#########????????????????# #???????# #?? | | ????#=#????????????????????????# #???????# #?? | | ????# #????????????????????????# #???????# #?? | +----------------------------------------------------+ Best States ------------- Heat Dissipation 25 Energy Generation 10 Energy Capacity 250 Matter Stores 300 Matter Capacity 300 Sight Range 16 Terrain Scan Density 10 Evasion (%) 40 Recoil Reduction 1 Item Schematics ----------------- None Robot Schematics ------------------ None Fabricated ------------ Nothing Alien Tech Used ----------------- None Achievements -------------- None Challenges ------------ None Game ------ Seed ParticleBiocellAxe Manual? 0 Play Time 00:14:25 Cumulative 184.3 hours Start 2019.11.02 @ 20:21:26 End 2019.11.02 @ 21:00:58 Sessions 1 Manual Loads 0 Difficulty Rogue Special Mode None Game No. 184 Rogue 184 Adventurer 0 Explorer 0 Win Type - Total 4 Types 4/0/0/0/0/0/0 Lore% 55 Gallery% 70 Achievement% 45 Wizard Run 0 Options --------- ASCII 0 Keyboard 1 Movement Numpad Keybinds 0 Fullscreen 0 Font 16/SmallcapsGlow Map View 76x50 Tactical HUD 1 Map Filters NONE Filters NONE Steam 1 RUN: c227b4b1-ef08-4d5f-b545-14911efd3f6a